fUSD/lending_fUSD_20250820
["ID","MTS","AMOUNT","RATE_DAILY","PERIOD"]
[380394130,1755725446084,-151.0,0.00029,7]
[380394131,1755725446094,-299.530814,0.00029,7]
[380394132,1755725446108,-151.0,0.00029,7]
[380394133,1755725446117,-299.530814,0.00029,7]
[380394134,1755725446127,-151.0,0.00029,7]
[380394135,1755725446136,-151.0,0.00029,7]
[380394136,1755725446146,-150.0,0.00029002,7]
[380394137,1755725446155,-150.0,0.00029002,7]
[380394138,1755725446164,-500.0,0.00029011,2]
[380394139,1755725446173,-151.31924293,0.00029011,2]
[380394140,1755725446184,-5977.48407,0.00029011,2]
[380394141,1755725446193,-1000.0,0.0002902,12]
[380394142,1755725446202,-9027.0890041,0.0002902,2]
[380394143,1755725446210,-200.0,0.00029021,2]
[380394144,1755725446220,-200.0,0.00029021,2]
[380394145,1755725446229,-154.0,0.00029021,3]
[380394146,1755725446238,-600.0,0.00029026,2]
[380394147,1755725446247,-700.0,0.0002904,7]
[380394148,1755725446257,-500.0,0.0002904,7]
[380394149,1755725446267,-1444.0,0.00029041,120]
[380394150,1755725446277,-150.0,0.00029067,7]
[380394151,1755725446287,-329.26892148,0.0002908,2]
[380394152,1755725446296,-150.0,0.00029081,7]
[380394153,1755725446305,-500.0,0.00029095,15]
[380394154,1755725446314,-500.0,0.00029095,15]
[380394155,1755725446323,-300.0,0.000291,2]
[380394156,1755725446332,-300.0,0.000291,2]
[380394157,1755725446341,-52018.34339418,0.0002911,11]
[380394158,1755725446350,-150.0,0.00029118,7]
[380394159,1755725446359,-2222.22,0.00029121,30]
[380394160,1755725446369,-150.0,0.00029132,7]
[380394161,1755725446378,-150.0,0.00029168,7]
[380394162,1755725446387,-150.0,0.00029168,7]
[380394163,1755725446396,-150.0,0.00029168,7]
[380394164,1755725446405,-150.0,0.00029244,7]
[380394165,1755725446414,-1000.0,0.00029254,2]
[380394166,1755725446424,-150.0,0.00029269,7]
[380394167,1755725446433,-150.0,0.00029279,7]
[380394168,1755725446442,-150.0,0.00029279,7]
[380394169,1755725446451,-300.0,0.00029299,10]
[380394170,1755725446460,-300.0,0.00029299,10]
[380394171,1755725446469,-7318.2,0.000293,7]
[380394172,1755725446478,-200.0,0.00029311,2]
[380394173,1755725446488,-150.0,0.00029311,7]
[380394174,1755725446497,-500.0,0.00029314,7]
[380394175,1755725446505,-1184.32,0.00029342,2]
[380394176,1755725446515,-1184.32,0.00029342,2]
[380394177,1755725446524,-500.0,0.00029369,15]
[380394178,1755725446534,-500.0,0.00029369,15]
[380394179,1755725446543,-150.0,0.00029371,7]
[380394180,1755725446553,-150.0,0.00029371,7]
[380394181,1755725446562,-2273.0,0.00029392,2]
[380394182,1755725446571,-2545.53957219,0.00029417,2]
[380394183,1755725446580,-213.0,0.0002944,2]
[380394184,1755725446589,-216.0,0.0002944,30]
[380394185,1755725446598,-150.0,0.00029472,7]
[380394186,1755725446607,-150.0,0.00029472,7]
[380394187,1755725446617,-150.0,0.0002949,7]
[380394188,1755725446626,-347.12,0.00029514,2]
[380394189,1755725446635,-173.61,0.00029514,2]
[380394190,1755725446644,-173.31,0.00029514,2]
[380394191,1755725446653,-150.0,0.00029515,7]
[380394192,1755725446663,-1000.0,0.00029521,5]
[380394193,1755725446672,-1000.0,0.00029521,5]
[380394194,1755725446681,-150.0,0.00029555,7]
[380394195,1755725446691,-150.0,0.00029555,7]
[380394196,1755725446700,-257.46731683,0.00029562,2]
[380394197,1755725446709,-1457.47700849,0.00029571,2]
[380394198,1755725446718,-1457.47700849,0.00029572,2]
[380394199,1755725446728,-150.0,0.00029573,7]
[380394200,1755725446737,-600.0,0.00029574,2]
[380394201,1755725446746,-1457.47700849,0.00029581,2]
[380394202,1755725446755,-930.73368176,0.00029583,2]
[380394203,1755725446764,-187.35623448,0.00029585,2]
[380394204,1755725446774,-257.46731683,0.00029587,2]
[380394205,1755725446783,-257.46731683,0.00029587,2]
[380394206,1755725446792,-13509.86946183,0.00029591,2]
[380394207,1755725446801,-1457.47700849,0.00029599,2]
[380394208,1755725446810,-200.0,0.00029604,2]
[380394209,1755725446820,-313.52029373,0.00029605,2]
[380394210,1755725446829,-13509.86946183,0.00029606,2]
[380394211,1755725446838,-187.35623448,0.00029607,2]
[380394212,1755725446847,-1457.47700849,0.00029608,2]
[380394213,1755725446857,-187.43645146,0.00029614,2]
[380394214,1755725446866,-187.43645146,0.00029615,2]
[380394215,1755725446875,-13509.86946183,0.00029622,2]
[380394216,1755725446885,-150.0,0.00029624,7]
[380394217,1755725446894,-150.0,0.00029624,7]
[380394218,1755725446903,-150.0,0.00029624,7]
[380394219,1755725446913,-13509.86946183,0.00029628,2]
[380394220,1755725446922,-187.35623448,0.00029631,2]
[380394221,1755725446932,-13509.86946183,0.00029634,2]
[380394222,1755725446943,-187.43645146,0.00029638,2]
[380394223,1755725446953,-500.0,0.00029643,15]
[380394224,1755725446962,-500.0,0.00029643,15]
[380394225,1755725446971,-930.73368176,0.00029645,2]
[380394226,1755725446980,-1457.47700849,0.00029653,2]
[380394227,1755725446990,-313.52029373,0.00029661,2]
[380394228,1755725447000,-150.0,0.00029669,7]
[380394229,1755725447009,-150.0,0.00029675,7]
[380394230,1755725447019,-187.35623448,0.00029684,2]
[380394231,1755725447028,-313.52029373,0.00029695,2]
[380394232,1755725447037,-313.52029373,0.00029695,2]
[380394233,1755725447046,-2273.0,0.00029695,2]
[380394234,1755725447055,-10331.89734918,0.00029699,2]
[380394235,1755725447065,-187.35623448,0.00029713,2]
[380394236,1755725447076,-930.73368176,0.00029718,2]
[380394237,1755725447085,-187.35623448,0.00029723,2]
[380394238,1755725447094,-187.43645146,0.00029724,2]
[380394239,1755725447109,-187.43645146,0.00029725,2]
[380394240,1755725447118,-930.73368176,0.0002973,2]
[380394241,1755725447128,-313.52029373,0.00029732,2]
[380394242,1755725447137,-930.73368176,0.00029742,2]
[380394243,1755725447148,-257.46731683,0.00029742,2]
[380394244,1755725447158,-187.35623448,0.00029745,2]
[380394245,1755725447167,-13509.86946183,0.00029747,2]
[380394246,1755725447179,-187.43645146,0.00029747,2]
[380394247,1755725447189,-930.73368176,0.00029751,2]
[380394248,1755725447198,-1457.47700849,0.00029756,2]
[380394249,1755725447208,-257.46731683,0.00029757,2]
[380394250,1755725447217,-257.46731683,0.00029759,2]
[380394251,1755725447228,-187.43645146,0.0002976,2]
[380394252,1755725447237,-930.73368176,0.00029763,2]
[380394253,1755725447246,-150.0,0.00029776,7]
[380394254,1755725447256,-150.0,0.00029776,7]
[380394255,1755725447265,-150.0,0.00029776,7]
[380394256,1755725447275,-13509.86946183,0.00029779,2]
[380394257,1755725447285,-257.46731683,0.00029781,2]
[380394258,1755725447294,-313.52029373,0.00029783,2]
[380394259,1755725447303,-313.52029373,0.00029795,2]
[380394260,1755725447312,-2500.0,0.000298,5]
[380394261,1755725447322,-150.0,0.00029831,7]
[380394262,1755725447330,-150.0,0.00029831,7]
[380394263,1755725447339,-200.0,0.00029845,2]
[380394264,1755725447349,-150.0,0.00029847,7]
[380394265,1755725447359,-1720.74,0.00029858,30]
[380394266,1755725447369,-700.0,0.00029862,7]
[380394267,1755725447378,-500.0,0.00029862,7]
[380394268,1755725447387,-200.0,0.00029864,2]
[380394269,1755725447398,-500.0,0.00029864,2]
[380394270,1755725447409,-150.0,0.00029864,2]
[380394271,1755725447418,-500.0,0.00029864,2]
[380394272,1755725447428,-500.0,0.00029864,2]
[380394273,1755725447438,-150.0,0.00029864,2]
[380394274,1755725447449,-500.0,0.00029864,2]
[380394275,1755725447460,-500.0,0.00029864,2]
[380394276,1755725447469,-500.0,0.00029864,2]
[380394277,1755725447479,-150.0,0.00029864,2]
[380394278,1755725447489,-150.0,0.00029864,2]
[380394279,1755725447498,-213.18996601,0.00029864,2]
[380394280,1755725447507,-150.0,0.00029864,2]
[380394281,1755725447516,-150.0,0.00029864,2]
[380394282,1755725447527,-500.0,0.00029864,2]
[380394283,1755725447536,-150.0,0.00029864,2]
[380394284,1755725447545,-500.0,0.00029864,2]
[380394285,1755725447554,-150.0,0.00029864,2]
[380394286,1755725447564,-500.0,0.00029864,2]
[380394287,1755725447573,-150.0,0.00029864,2]
[380394288,1755725447583,-150.0,0.00029871,2]
[380394289,1755725447592,-150.0,0.00029877,7]
[380394290,1755725447601,-150.0,0.00029877,7]
[380394291,1755725447611,-13306.74679533,0.000299,7]
[380394292,1755725447620,-843.97594471,0.000299,7]
[380394293,1755725447630,-200.0,0.000299,2]
[380394294,1755725447639,-500.0,0.00029917,15]
[380394295,1755725447648,-880.51,0.00029917,15]
[380394296,1755725447657,-168.88,0.0002993,2]
[380394297,1755725447666,-1000.0,0.00029934,2]
[380394298,1755725447675,-150.0,0.0002995,7]
[380394299,1755725447684,-500.0,0.00029973,5]
[380394300,1755725447694,-500.0,0.00029973,5]
[380394301,1755725447703,-450.0,0.00029976,2]
[380394302,1755725447712,-150.0,0.00029978,7]
[380394303,1755725447721,-415.15317091,0.00029979,2]
[380394304,1755725447730,-8248.7256346,0.00029979,2]
[380394305,1755725447739,-150.0,0.00029985,2]
[380394306,1755725447749,-232.12527613,0.0002999,2]
[380394307,1755725447758,-1000.0,0.00029994,2]
[380394308,1755725447768,-309.29654756,0.00029996,2]
[380394309,1755725447778,-2273.0,0.00029998,2]
[380394310,1755725447787,-300.0,0.00029999,10]
[380394311,1755725447797,-300.0,0.00029999,10]
[380394312,1755725447806,-300.0,0.00029999,10]
[380394313,1755725447815,-1248.64396324,0.00029999,30]
[380394314,1755725447824,-169.44308148,0.00029999,30]
[380394315,1755725447833,-170.90537082,0.00029999,30]
[380394316,1755725447844,-244.0,0.0003,30]
[380394317,1755725447852,-150.0,0.0003,2]
[380394318,1755725447861,-530.0,0.0003,14]
[380394319,1755725447871,-834.0,0.0003,14]
[380394320,1755725447880,-502.19909249,0.0003,15]
[380394321,1755725447888,-308.17,0.0003,2]
[380394322,1755725447897,-153.17123252,0.0003,30]
[380394323,1755725447906,-206.0,0.0003,30]
[380394324,1755725447915,-175494.80968249,0.0003,5]
[380394325,1755725447924,-10000.0,0.0003,10]
[380394326,1755725447934,-241.0,0.0003,14]
[380394327,1755725447943,-258.0,0.0003,14]
[380394328,1755725447952,-429.0,0.0003,2]
[380394329,1755725447961,-212.04014818,0.0003,10]
[380394330,1755725447971,-165.7,0.0003,22]
[380394331,1755725447980,-19444.31587763,0.0003,2]
[380394332,1755725447990,-514.185812,0.0003,120]
[380394333,1755725447999,-1264.74965675,0.0003,10]
[380394334,1755725448008,-1251.74851707,0.0003,14]
[380394335,1755725448018,-1776.27853878,0.0003,2]
[380394336,1755725448028,-162.17961939,0.0003,2]
[380394337,1755725448038,-1070.05626848,0.0003,10]
[380394338,1755725448048,-979.55867297,0.0003,2]
[380394339,1755725448057,-600.12149806,0.0003,2]
[380394340,1755725448067,-184625.32438536,0.0003,3]
[380394341,1755725448076,-458.46930693,0.0003,10]
[380394342,1755725448086,-630.0,0.0003,30]
[380394343,1755725448095,-1884.574136,0.0003,2]
[380394344,1755725448108,-1000.0,0.00030003,2]
[380394345,1755725448118,-150.0,0.00030004,7]
[380394346,1755725448127,-150.0,0.00030018,2]
[380394347,1755725448137,-1000.0,0.00030021,2]
[380394348,1755725448147,-150.0,0.00030026,7]
[380394349,1755725448156,-150.0,0.00030036,2]
[380394350,1755725448165,-150.0,0.00030036,2]
[380394351,1755725448174,-499.89584616,0.00030036,2]
[380394352,1755725448184,-183.05574061,0.00030036,2]
[380394353,1755725448194,-1579.82003362,0.00030036,2]
[380394354,1755725448204,-150.0,0.00030036,2]
[380394355,1755725448213,-150.0,0.0003004,2]
[380394356,1755725448223,-1000.0,0.00030042,2]
[380394357,1755725448232,-1000.0,0.00030042,2]
[380394358,1755725448241,-300.0,0.00030068,10]
[380394359,1755725448251,-300.0,0.00030068,10]
[380394360,1755725448260,-332.10828572,0.00030068,10]
[380394361,1755725448269,-1414.80833616,0.00030068,5]
[380394362,1755725448280,-1500.0,0.00030068,5]
[380394363,1755725448290,-151.0,0.00030069,7]
[380394364,1755725448300,-151.0,0.00030069,7]
[380394365,1755725448310,-151.0,0.00030069,7]
[380394366,1755725448320,-151.0,0.00030069,7]
[380394367,1755725448330,-151.0,0.00030069,7]
[380394368,1755725448339,-151.0,0.00030069,7]
[380394369,1755725448349,-151.0,0.00030069,7]
[380394370,1755725448358,-152.307233,0.00030069,7]
[380394371,1755725448368,-151.0,0.00030069,7]
[380394372,1755725448377,-276.616338,0.00030069,7]
[380394373,1755725448387,-971.588254,0.00030069,7]
[380394374,1755725448396,-151.0,0.00030069,7]
[380394375,1755725448405,-284.685472,0.00030069,7]
[380394376,1755725448414,-276.616338,0.00030069,7]
[380394377,1755725448423,-284.685472,0.00030069,7]
[380394378,1755725448432,-168.197747,0.00030069,7]
[380394379,1755725448441,-276.616338,0.00030069,7]
[380394380,1755725448451,-284.685472,0.00030069,7]
[380394381,1755725448460,-276.616338,0.00030069,7]
[380394382,1755725448469,-168.197747,0.00030069,7]
[380394383,1755725448479,-151.0,0.00030069,7]
[380394384,1755725448488,-284.685472,0.00030069,7]
[380394385,1755725448499,-168.197747,0.00030069,7]
[380394386,1755725448508,-168.197747,0.00030069,7]
[380394387,1755725448517,-151.0,0.00030069,7]
[380394388,1755725448527,-151.0,0.00030069,7]
[380394389,1755725448536,-971.588254,0.00030069,7]
[380394390,1755725448545,-151.0,0.00030069,7]
[380394391,1755725448554,-971.588254,0.00030069,7]
[380394392,1755725448564,-151.0,0.00030069,7]
[380394393,1755725448573,-971.588254,0.00030069,7]
[380394394,1755725448582,-151.0,0.00030069,7]
[380394395,1755725448591,-151.0,0.00030069,7]
[380394396,1755725448601,-151.0,0.00030069,7]
[380394397,1755725448610,-288.4283,0.00030069,7]
[380394398,1755725448619,-151.186818,0.00030069,7]
[380394399,1755725448628,-151.0,0.00030069,7]
[380394400,1755725448638,-151.0,0.00030069,7]
[380394401,1755725448647,-269.577583,0.00030069,7]
[380394402,1755725448656,-1101.468649,0.00030069,7]
[380394403,1755725448665,-1101.468649,0.00030069,7]
[380394404,1755725448675,-1101.468649,0.00030069,7]
[380394405,1755725448684,-1101.468649,0.00030069,7]
[380394406,1755725448693,-151.0,0.00030069,7]
[380394407,1755725448702,-151.0,0.00030069,7]
[380394408,1755725448712,-151.0,0.00030069,7]
[380394409,1755725448721,-151.0,0.00030069,7]
[380394410,1755725448731,-257.559373,0.00030069,7]
[380394411,1755725448739,-151.0,0.00030069,7]
[380394412,1755725448748,-151.0,0.00030069,7]
[380394413,1755725448757,-257.559373,0.00030069,7]
[380394414,1755725448767,-151.0,0.00030069,7]
[380394415,1755725448776,-151.0,0.00030069,7]
[380394416,1755725448785,-257.559373,0.00030069,7]
[380394417,1755725448794,-151.0,0.00030069,7]
[380394418,1755725448804,-257.559373,0.00030069,7]
[380394419,1755725448813,-151.0,0.00030069,7]
[380394420,1755725448822,-151.0,0.00030069,7]
[380394421,1755725448831,-151.140946,0.00030069,7]
[380394422,1755725448840,-151.0,0.00030069,7]
[380394423,1755725448849,-151.0,0.00030069,7]
[380394424,1755725448859,-151.0,0.00030069,7]
[380394425,1755725448868,-151.0,0.00030069,7]
[380394426,1755725448877,-151.0,0.00030069,7]
[380394427,1755725448887,-151.0,0.00030069,7]
[380394428,1755725448896,-151.0,0.00030069,7]
[380394429,1755725448905,-223.160252,0.00030069,7]
[380394430,1755725448914,-223.160252,0.00030069,7]
[380394431,1755725448923,-223.160252,0.00030069,7]
[380394432,1755725448933,-223.160252,0.00030069,7]
[380394433,1755725448942,-151.0,0.00030069,7]
[380394434,1755725448951,-151.0,0.00030069,7]
[380394435,1755725448960,-151.0,0.00030069,7]
[380394436,1755725448969,-167.977938,0.00030069,7]
[380394437,1755725448978,-151.0,0.00030069,7]
[380394438,1755725448988,-198.964985,0.00030069,7]
[380394439,1755725448997,-167.977938,0.00030069,7]
[380394440,1755725449007,-151.0,0.00030069,7]
[380394441,1755725449016,-380.407563,0.00030069,7]
[380394442,1755725449026,-167.977938,0.00030069,7]
[380394443,1755725449036,-233.505433,0.00030069,7]
[380394444,1755725449045,-198.964985,0.00030069,7]
[380394445,1755725449054,-380.407563,0.00030069,7]
[380394446,1755725449063,-167.977938,0.00030069,7]
[380394447,1755725449072,-231.589653,0.00030069,7]
[380394448,1755725449081,-198.964985,0.00030069,7]
[380394449,1755725449091,-380.407563,0.00030069,7]
[380394450,1755725449101,-231.589653,0.00030069,7]
[380394451,1755725449112,-151.0,0.00030069,7]
[380394452,1755725449122,-198.964985,0.00030069,7]
[380394453,1755725449131,-380.407563,0.00030069,7]
[380394454,1755725449141,-231.589653,0.00030069,7]
[380394455,1755725449151,-151.0,0.00030069,7]
[380394456,1755725449160,-151.0,0.00030069,7]
[380394457,1755725449169,-368.903733,0.00030069,7]
[380394458,1755725449180,-231.589653,0.00030069,7]
[380394459,1755725449189,-368.903733,0.00030069,7]
[380394460,1755725449199,-368.903733,0.00030069,7]
[380394461,1755725449208,-368.903733,0.00030069,7]
[380394462,1755725449218,-151.0,0.00030069,7]
[380394463,1755725449227,-151.0,0.00030069,7]
[380394464,1755725449236,-229.914136,0.00030069,7]
[380394465,1755725449246,-151.0,0.00030069,7]
[380394466,1755725449255,-229.914136,0.00030069,7]
[380394467,1755725449264,-229.914136,0.00030069,7]
[380394468,1755725449273,-229.914136,0.00030069,7]
[380394469,1755725449283,-177.013246,0.00030069,7]
[380394470,1755725449452,-177.013246,0.00030069,7]
[380394471,1755725449465,-177.013246,0.00030069,7]
[380394472,1755725449474,-177.013246,0.00030069,7]
[380394473,1755725449484,-151.0,0.00030069,7]
[380394474,1755725449493,-1308.40617,0.00030069,7]
[380394475,1755725449503,-151.0,0.00030069,7]
[380394476,1755725449513,-1308.40617,0.00030069,7]
[380394477,1755725449523,-1308.40617,0.00030069,7]
[380394478,1755725449533,-1308.40617,0.00030069,7]
[380394479,1755725449543,-386.51106,0.00030069,7]
[380394480,1755725449552,-178.960945,0.00030069,7]
[380394481,1755725449562,-386.51106,0.00030069,7]
[380394482,1755725449572,-386.51106,0.00030069,7]
[380394483,1755725449581,-386.51106,0.00030069,7]
[380394484,1755725449591,-151.0,0.00030069,7]
[380394485,1755725449600,-226.341115,0.00030069,7]
[380394486,1755725449611,-226.341115,0.00030069,7]
[380394487,1755725449621,-151.0,0.00030069,7]
[380394488,1755725449630,-151.0,0.00030069,7]
[380394489,1755725449640,-226.341115,0.00030069,7]
[380394490,1755725449650,-151.0,0.00030069,7]
[380394491,1755725449660,-226.341115,0.00030069,7]
[380394492,1755725449669,-151.0,0.00030069,7]
[380394493,1755725449678,-151.0,0.00030069,7]
[380394494,1755725449688,-300.0,0.0003007,2]
[380394495,1755725449697,-689.70179394,0.00030072,2]
[380394496,1755725449707,-563.46608371,0.00030073,5]
[380394497,1755725449716,-511.17771888,0.00030073,5]
[380394498,1755725449725,-2222.22,0.00030074,30]
[380394499,1755725449735,-7470.3622652,0.00030079,2]
[380394500,1755725449744,-6691.9988958,0.00030079,2]
[380394501,1755725449753,-5913.6355264,0.00030079,2]
[380394502,1755725449762,-150.0,0.0003008,7]
[380394503,1755725449771,-150.0,0.0003008,7]
[380394504,1755725449782,-150.0,0.00030086,2]
[380394505,1755725449792,-150.0,0.00030089,2]
[380394506,1755725449801,-845.15078654,0.00030089,2]
[380394507,1755725449812,-1077.15296324,0.00030089,2]
[380394508,1755725449822,-1137.03,0.00030089,7]
[380394509,1755725449833,-1309.15513994,0.0003009,2]
[380394510,1755725449843,-1541.15731664,0.0003009,2]
[380394511,1755725449855,-1773.15949333,0.0003009,2]
[380394512,1755725449864,-2005.16167003,0.0003009,2]
[380394513,1755725449875,-2237.16384673,0.0003009,2]
[380394514,1755725449884,-2469.16602343,0.0003009,2]
[380394515,1755725449894,-2701.16820013,0.0003009,2]
[380394516,1755725449905,-1000.0,0.00030098,2]
[380394517,1755725449915,-1000.0,0.00030099,2]
[380394518,1755725449926,-150.0,0.00030099,2]
[380394519,1755725449938,-300.0,0.000301,2]
[380394520,1755725449949,-607123.43407102,0.000301,2]
[380394521,1755725449960,-165.7,0.000301,22]
[380394522,1755725449970,-300.0,0.000301,2]
[380394523,1755725449979,-1000.0,0.00030101,2]
[380394524,1755725449988,-150.0,0.00030107,7]
[380394525,1755725449999,-150.0,0.00030107,7]
[380394526,1755725450010,-1000.0,0.00030114,2]
[380394527,1755725450020,-5135.272157,0.00030115,2]
[380394528,1755725450031,-1000.0,0.00030121,2]
[380394529,1755725450040,-600.0,0.00030122,2]
[380394530,1755725450050,-151.16556236,0.00030123,2]
[380394531,1755725450061,-107263.8338968,0.00030127,2]
[380394532,1755725450070,-151.0,0.00030127,7]
[380394533,1755725450080,-4940.116629,0.00030127,7]
[380394534,1755725450090,-151.0,0.00030127,7]
[380394535,1755725450099,-4940.116629,0.00030127,7]
[380394536,1755725450112,-151.0,0.00030127,7]
[380394537,1755725450122,-299.530814,0.00030127,7]
[380394538,1755725450131,-4940.116629,0.00030127,7]
[380394539,1755725450141,-299.530814,0.00030127,7]
[380394540,1755725450151,-4940.116629,0.00030127,7]
[380394541,1755725450162,-151.0,0.00030127,7]
[380394542,1755725450172,-299.530814,0.00030127,7]
[380394543,1755725450183,-151.0,0.00030127,7]
[380394544,1755725450193,-299.530814,0.00030127,7]
[380394545,1755725450205,-151.0,0.00030127,7]
[380394546,1755725450215,-151.0,0.00030127,7]
[380394547,1755725450225,-213.0,0.0003013,2]
[380394548,1755725450235,-219.0,0.0003013,30]
[380394549,1755725450245,-305.50532187,0.0003013,2]
[380394550,1755725450256,-16334.47685083,0.0003013,3]
[380394551,1755725450265,-216.0,0.0003013,30]
[380394552,1755725450277,-434.41778255,0.0003013,2]
[380394553,1755725450287,-217.0,0.0003013,30]
[380394554,1755725450296,-1623.69826661,0.0003013,30]
[380394555,1755725450306,-13542.30523258,0.0003013,2]
[380394556,1755725450315,-1228.61818235,0.0003013,5]
[380394557,1755725450325,-197.24058207,0.0003013,2]
[380394558,1755725450335,-200.92479456,0.0003013,2]
[380394559,1755725450344,-7563.40716497,0.0003013,2]
[380394560,1755725450353,-150.0,0.0003013,7]
[380394561,1755725450363,-1000.0,0.00030135,2]
[380394562,1755725450372,-1000.0,0.00030135,2]
[380394563,1755725450381,-2000.0,0.00030135,2]
[380394564,1755725450392,-620.50971182,0.00030135,120]
[380394565,1755725450402,-150.0,0.00030135,2]
[380394566,1755725450414,-13.30349517,0.00030136,120]
[380394567,1755725450425,-400.0,0.00030136,120]
[380394568,1755725450435,-400.0,0.00030136,120]
[380394569,1755725450445,-400.0,0.00030136,120]
[380394570,1755725450455,-461.7,0.00030136,120]
[380394571,1755725450464,-400.0,0.00030136,120]
[380394572,1755725450474,-400.0,0.00030136,120]
[380394573,1755725450483,-400.0,0.00030136,120]
[380394574,1755725450493,-664.18,0.00030136,120]
[380394575,1755725450503,-400.0,0.00030136,120]
[380394576,1755725450512,-400.0,0.00030136,120]
[380394577,1755725450522,-400.0,0.00030136,120]
[380394578,1755725450533,-400.0,0.00030136,120]
[380394579,1755725450543,-400.0,0.00030136,120]
[380394580,1755725450552,-400.0,0.00030136,120]
[380394581,1755725450562,-473.58,0.00030136,120]
[380394582,1755725450572,-400.0,0.00030136,120]
[380394583,1755725450581,-400.0,0.00030136,120]
[380394584,1755725450591,-400.0,0.00030136,120]
[380394585,1755725450600,-400.0,0.00030136,120]
[380394586,1755725450610,-400.0,0.00030136,120]
[380394587,1755725450619,-400.0,0.00030136,120]
[380394588,1755725450628,-400.0,0.00030136,120]
[380394589,1755725450638,-400.0,0.00030136,120]
[380394590,1755725450647,-400.0,0.00030136,120]
[380394591,1755725450656,-606.39,0.00030136,120]
[380394592,1755725450666,-400.0,0.00030136,120]
[380394593,1755725450675,-400.0,0.00030136,120]
[380394594,1755725450685,-400.0,0.00030136,120]
[380394595,1755725450694,-400.0,0.00030136,120]
[380394596,1755725450704,-400.0,0.00030136,120]
[380394597,1755725450713,-400.0,0.00030136,120]
[380394598,1755725450723,-456.46,0.00030136,120]
[380394599,1755725450732,-400.0,0.00030136,120]
[380394600,1755725450742,-400.0,0.00030136,120]
[380394601,1755725450751,-400.0,0.00030136,120]
[380394602,1755725450760,-400.0,0.00030136,120]
[380394603,1755725450770,-552.25,0.00030136,120]
[380394604,1755725450782,-400.0,0.00030136,120]
[380394605,1755725450791,-418.95,0.00030136,120]
[380394606,1755725450801,-400.0,0.00030136,120]
[380394607,1755725450811,-400.0,0.00030136,120]
[380394608,1755725450820,-400.0,0.00030136,120]
[380394609,1755725450830,-400.0,0.00030136,120]
[380394610,1755725450839,-400.0,0.00030136,120]
[380394611,1755725450848,-400.0,0.00030136,120]
[380394612,1755725450857,-400.0,0.00030136,120]
[380394613,1755725450867,-400.0,0.00030136,120]
[380394614,1755725450877,-400.0,0.00030136,120]
[380394615,1755725450887,-412.9,0.00030136,120]
[380394616,1755725450896,-400.0,0.00030136,120]
[380394617,1755725450905,-588.98,0.00030136,120]
[380394618,1755725450915,-422.46,0.00030136,120]
[380394619,1755725450924,-400.0,0.00030136,120]
[380394620,1755725450934,-400.0,0.00030136,120]
[380394621,1755725450943,-601.72,0.00030136,120]
[380394622,1755725450952,-400.0,0.00030136,120]
[380394623,1755725450962,-558.15,0.00030136,120]
[380394624,1755725450972,-400.0,0.00030136,120]
[380394625,1755725450981,-400.0,0.00030136,120]
[380394626,1755725450991,-455.13,0.00030136,30]
[380394627,1755725451001,-400.0,0.00030136,120]
[380394628,1755725451011,-654.29,0.00030136,120]
[380394629,1755725451020,-400.0,0.00030136,120]